[Event "Int SVK-ch Open 2020"]
[Site "Drienica"]
[Date "2020.08.13"]
[Round "6.14"]
[White "Panko Eduard st."]
[Black "Stevik, Patrik"]
[Result "1-0"]
[ECO "C40"]
[WhiteElo "1958"]
[BlackElo "2047"]
[Annotator "ChessBase"]
[PlyCount "91"]
[EventDate "2020.08.07"]
[EventType "swiss"]
[EventCountry "SVK"]
[TimeControl "40/5400+30:1800+30"]

1. e4 {[%emt 0:00:08]} e5 {[%emt 0:01:55]} 2. Nf3 {[%emt 0:00:28]} c6 {[%emt 0:01:58]} 3. Nxe5 {[%emt 0:02:56]} Nf6 {[%emt 0:00:59]} 4. Nc3 {[%emt 0:03:45]} Qe7 {[%emt 0:00:17]} 5. Ng4 {[%emt 0:02:33]} Nxe4 {[%emt 0:00:29]} 6. Nxe4 {[%emt 0:00:24]} Qxe4+ {[%emt 0:00:43]} 7. Ne3 {[%emt 0:03:38]} d5 {[%emt 0:01:42]} 8. Bd3 {[%emt 0:03:43]} Qh4 {[%emt 0:05:45]} 9. Qf3 {[%emt 0:03:49]} Bd6 {[%emt 0:03:26]} 10. g3 {[%emt 0:05:27]} Qh6 {[%emt 0:03:37]} 11. Bf5 {[%emt 0:05:14]} Be6 {[%emt 0:07:06]} 12. d4 {[%emt 0:07:58]} Qf6 {[%emt 0:02:37]} 13. c3 {[%emt 0:00:07]} Nd7 {[%emt 0:00:42]} 14. Qg4 {[%emt 0:03:38]} h5 {[%emt 0:03:20]} 15. Qh3 {[%emt 0:00:48]} g5 {[%emt 0:05:06]} 16. Bxe6 {[%emt 0:01:25]} fxe6 {[%emt 0:02:11]} 17. Bd2 {[%emt 0:01:50]} g4 {[%emt 0:06:53]} 18. Qg2 {[%emt 0:00:32]} e5 {[%emt 0:00:38]} 19. h3 {[%emt 0:03:17]} Rg8 {[%emt 0:01:50]} 20. hxg4 {[%emt 0:01:01]} hxg4 {[%emt 0:01:50]} 21. O-O-O {[%emt 0:02:42]} O-O-O {[%emt 0:03:34]} 22. Nc2 {[%emt 0:03:16]} Rdf8 {[%emt 0:04:22]} 23. Be3 {[%emt 0:00:48]} Qf5 {[%emt 0:04:45]} 24. Rh6 {[%emt 0:02:10]} Be7 {[%emt 0:02:37]} 25. Rh2 {[%emt 0:03:33]} Bg5 {[%emt 0:00:33]} 26. Bxg5 {[%emt 0:05:57]} Rxg5 {[%emt 0:02:20]} 27. Ne3 {[%emt 0:02:47]} Qf6 {[%emt 0:01:54]} 28. Rd2 {[%emt 0:04:33]} exd4 {[%emt 0:01:08]} 29. cxd4 {[%emt 0:04:07]} Rg7 {[%emt 0:01:00]} 30. Rh4 {[%emt 0:01:41]} Qe6 {[%emt 0:01:38]} 31. Qh1 {[%emt 0:09:47]} Rxf2 {[%emt 0:08:40]} 32. Rxf2 {[%emt 0:00:06]} Qxe3+ {[%emt 0:00:05]} 33. Rd2 {[%emt 0:00:03]} Qxg3 {[%emt 0:00:26]} 34. Rh8+ {[%emt 0:00:18]} Kc7 {[%emt 0:00:06]} 35. Qh6 {[%emt 0:04:09]} Rf7 {[%emt 0:03:30]} 36. Qg5 {[%emt 0:00:41]} Rf6 {[%emt 0:01:44]} 37. Rh7 {[%emt 0:01:01]} Qf3 {[%emt 0:01:34]} 38. Rg7 {[%emt 0:01:38]} Qf1+ {[%emt 0:00:50]} 39. Rd1 {[%emt 0:02:11]} Qc4+ {[%emt 0:00:10]} 40. Kb1 {[%emt 0:00:32]} Rf2 {[%emt 0:00:25]} 41. Rxd7+ {[%emt 0:31:15]} Kxd7 {[%emt 0:31:08]} 42. Qxg4+ {[%emt 0:01:00]} Ke7 {[%emt 0:01:11]} 43. Re1+ {[%emt 0:03:56]} Kf8 {[%emt 0:00:52]} 44. Qc8+ {[%emt 0:00:36]} Kf7 {[%emt 0:00:45]} 45. Qe8+ {[%emt 0:00:14]} Kg7 {[%emt 0:00:11]} 46. Rg1+ {[%emt 0:00:38]} 1-0

[Event "Int SVK-ch Open 2020"]
[Site "Drienica"]
[Date "2020.08.12"]
[Round "6.14"]
[White "Sosovickova, Jana"]
[Black "Janik, Marek Tobias"]
[Result "1/2-1/2"]
[ECO "B34"]
[WhiteElo "1829"]
[BlackElo "1549"]
[Annotator "NA"]
[PlyCount "57"]
[EventDate "2020.08.07"]
[EventType "swiss"]
[EventCountry "SVK"]
[SourceTitle "playchess.com"]
[Source "ChessBase"]
[SourceQuality "1"]
[TimeControl "40/5400+30:1800+30"]

1. e4 {[%emt 0:00:00]} c5 {[%emt 0:00:00]} 2. Nf3 {[%emt 0:00:00]} Nc6 {[%emt 0:00:00]} 3. d4 {[%emt 0:00:18]} cxd4 {[%emt 0:00:00]} 4. Nxd4 {[%emt 0:00:31]} Nf6 {[%emt 0:00:05]} 5. Nc3 {[%emt 0:00:47]} e5 {[%emt 0:00:07]} 6. Nf3 {[%emt 0:00:58]} Bb4 {[%emt 0:01:17]} 7. Bd3 {[%emt 0:01:05]} Bxc3+ {[%emt 0:02:10]} 8. bxc3 {[%emt 0:00:46]} O-O {[%emt 0:00:21]} 9. O-O {[%emt 0:02:49]} d6 {[%emt 0:02:55]} 10. h3 {[%emt 0:04:37] B33: Sicilian: Pelikan and Sveshnikov Variations.} h6 {[%emt 0:02:53]} 11. Re1 {[%emt 0:01:45]} Be6 {[%emt 0:02:33] [#]} 12. Ba3 $146 {[%emt 0:04:03]} ({Predecessor:} 12. a4 a6 13. Ba3 Qc7 14. Bf1 Rfd8 15. Qd2 Rd7 16. Qe3 Na5 17. Nd2 Rc8 18. Bb4 Nc6 19. Bd3 Rcd8 20. Rac1 Ne7 21. Nb3 Nc6 22. Red1 Kf8 23. Rd2 Nxb4 24. cxb4 Bxb3 {0-1 (24) Kulak,T (1299)-Kowalczyk,F (1254) Szczyrk 2014}) 12... Qc7 {[%emt 0:04:11]} 13. Nh4 {[%emt 0:05:12]} Rad8 {[%emt 0:05:16]} 14. Qf3 {[%emt 0:03:40]} Rfe8 {[%emt 0:02:14]} 15. Bb2 {[%emt 0:19:58]} Na5 {[%emt 0:14:16]} 16. Nf5 {[%emt 0:01:55]} Bxf5 {[%emt 0:03:36]} 17. Qxf5 {[%emt 0:00:32]} Nc6 {[%emt 0:05:05]} 18. Rab1 {[%emt 0:07:55]} a6 {[%emt 0:22:38]} 19. Re3 {[%emt 0:12:07]} Kh8 {[%emt 0:13:53]} 20. Rg3 {[%emt 0:03:49]} Qe7 {[%emt 0:05:41]} ({Black should try} 20... b5 $17) 21. Rf3 {[%emt 0:06:28]} Qc7 {[%emt 0:00:45]} 22. h4 {[%emt 0:02:07]} Ne7 {[%emt 0:00:27]} 23. Qh3 {[%emt 0:00:52]} d5 {[%emt 0:03:40]} 24. Re3 {[%emt 0:03:02]} d4 {[%emt 0:00:35]} 25. cxd4 {[%emt 0:01:56]} exd4 {[%emt 0:00:05]} 26. Re2 {[%emt 0:04:46]} Ng6 {[%emt 0:00:29]} 27. Bc1 $11 {[%emt 0:02:24]} b5 {[%emt 0:00:34]} 28. g3 {[%emt 0:01:34]} Ne5 {[%emt 0:02:49]} 29. Bf4 {[%emt 0:02:26]} 1/2-1/2

[Event "Int SVK-ch Open 2020"]
[Site "Drienica"]
[Date "2020.08.13"]
[Round "6.15"]
[White "Kardis, Benjamin"]
[Black "Geffert, Peter"]
[Result "1/2-1/2"]
[ECO "B20"]
[WhiteElo "2042"]
[BlackElo "1857"]
[Annotator "ChessBase"]
[PlyCount "34"]
[EventDate "2020.08.07"]
[EventType "swiss"]
[EventCountry "SVK"]
[TimeControl "40/5400+30:1800+30"]

1. e4 {[%emt 0:00:04]} c5 {[%emt 0:00:00]} 2. c4 {[%emt 0:00:04]} d6 {[%emt 0:00:12]} 3. Nc3 {[%emt 0:00:57]} Nc6 {[%emt 0:01:34]} 4. d3 {[%emt 0:05:50]} Nf6 {[%emt 0:04:35]} 5. g3 {[%emt 0:01:03]} e5 {[%emt 0:00:57]} 6. Bg2 {[%emt 0:00:25]} a6 {[%emt 0:05:00]} 7. Nge2 {[%emt 0:02:16]} Be6 {[%emt 0:01:39]} 8. O-O {[%emt 0:00:10]} g6 {[%emt 0:00:20]} 9. h3 {[%emt 0:00:06]} Bg7 {[%emt 0:02:25]} 10. Be3 {[%emt 0:01:01]} O-O {[%emt 0:00:51]} 11. f4 {[%emt 0:00:04]} Nd4 {[%emt 0:02:38]} 12. g4 {[%emt 0:04:35]} Bxg4 {[%emt 0:16:43]} 13. hxg4 {[%emt 0:00:18]} Nxg4 {[%emt 0:01:35]} 14. Bf2 {[%emt 0:02:16]} Nxe2+ {[%emt 0:05:08]} 15. Qxe2 {[%emt 0:01:26]} f5 {[%emt 0:03:41]} 16. exf5 {[%emt 0:39:42]} gxf5 {[%emt 0:04:25]} 17. Bf3 {[%emt 0:12:45]} exf4 {[%emt 0:09:35]} 1/2-1/2

[Event "Int SVK-ch Open 2020"]
[Site "Drienica"]
[Date "2020.08.12"]
[Round "6.15"]
[White "Holicky, Miroslav"]
[Black "Magda, Filip"]
[Result "1/2-1/2"]
[ECO "A49"]
[WhiteElo "1805"]
[BlackElo "1266"]
[Annotator "NA"]
[PlyCount "75"]
[EventDate "2020.08.07"]
[EventType "swiss"]
[EventCountry "SVK"]
[SourceTitle "playchess.com"]
[Source "ChessBase"]
[SourceQuality "1"]
[TimeControl "40/5400+30:1800+30"]

1. d4 {[%emt 0:00:00]} Nf6 {[%emt 0:00:02]} 2. Nf3 {[%emt 0:00:00]} g6 {[%emt 0:00:45]} 3. g3 {[%emt 0:00:18]} Bg7 {[%emt 0:00:54]} 4. Bg2 {[%emt 0:00:07]} O-O {[%emt 0:00:54]} 5. O-O {[%emt 0:00:09]} d6 {[%emt 0:00:55]} 6. Nbd2 {[%emt 0:00:50]} Bd7 {[%emt 0:02:57] [#] 6...Nc6 is becoming the main line. A49: 1 d4 Nf6 2 Nf3 g6 3 g3: Anti-King's Indian systems.} 7. Nc4 $146 {[%emt 0:07:41]} ({Predecessor:} 7. b3 Qc8 8. Bb2 c5 9. c4 cxd4 10. Nxd4 Bh3 11. Qc2 Bxg2 12. Kxg2 b6 13. f3 Qb7 14. e4 {0-1 (41) Wichmann,C (2215)-Lanka,Z (2510) Munich 1996}) 7... Bb5 {[%emt 0:06:10]} 8. Nfd2 {[%emt 0:13:17]} d5 {[%emt 0:06:20]} 9. Ne5 {[%emt 0:01:56]} e6 {[%emt 0:01:42]} 10. a4 {[%emt 0:06:00]} Bc6 {[%emt 0:02:59]} 11. e3 {[%emt 0:05:03]} Nfd7 {[%emt 0:07:11]} 12. Nd3 {[%emt 0:06:37]} e5 {[%emt 0:02:15]} 13. c3 {[%emt 0:09:23]} exd4 {[%emt 0:06:27]} 14. cxd4 {[%emt 0:00:46]} b6 {[%emt 0:02:44]} 15. b4 {[%emt 0:01:08]} Nf6 {[%emt 0:07:09]} 16. b5 {[%emt 0:00:50]} Bb7 {[%emt 0:00:13]} 17. Ba3 {[%emt 0:00:18]} Re8 {[%emt 0:00:31]} 18. Ne5 {[%emt 0:03:38]} c6 {[%emt 0:03:38]} 19. f4 {[%emt 0:03:45]} cxb5 {[%emt 0:02:23]} 20. axb5 {[%emt 0:00:11]} Nbd7 {[%emt 0:00:17]} 21. Ndf3 {[%emt 0:01:33]} Nxe5 {[%emt 0:00:45]} 22. Nxe5 $11 {[%emt 0:00:33]} (22. dxe5 $16 Ne4 23. Nd2) 22... Nd7 {[%emt 0:02:25]} 23. Bh3 {[%emt 0:04:36]} Nxe5 {[%emt 0:01:41]} 24. fxe5 {[%emt 0:00:23]} Bc8 {[%emt 0:04:29]} 25. Bg2 {[%emt 0:02:03]} Be6 {[%emt 0:00:09]} 26. Bd6 {[%emt 0:00:34]} Bf8 {[%emt 0:01:51]} 27. Bxf8 {[%emt 0:01:45]} Rxf8 {[%emt 0:00:15]} 28. e4 {[%emt 0:08:41]} (28. Qa4 $14) 28... Qd7 {[%emt 0:01:15]} 29. Qd3 {[%emt 0:01:23]} dxe4 {[%emt 0:01:57]} 30. Bxe4 {[%emt 0:04:56]} Bd5 {[%emt 0:00:38]} 31. Rf6 {[%emt 0:02:17]} Bxe4 {[%emt 0:01:31]} 32. Qxe4 {[%emt 0:00:10]} Rad8 {[%emt 0:02:03]} 33. Rd6 {[%emt 0:07:24]} Qxb5 {[%emt 0:01:23]} 34. Rxd8 {[%emt 0:00:11]} Rxd8 {[%emt 0:00:25]} 35. Rxa7 {[%emt 0:00:36]} Qc4 {[%emt 0:02:16]} 36. Ra8 {[%emt 0:01:18]} Rxa8 {[%emt 0:00:27]} 37. Qxa8+ {[%emt 0:00:12]} Kg7 {[%emt 0:00:49]} 38. Qd8 1/2-1/2

[Event "Int SVK-ch Open 2020"]
[Site "Drienica"]
[Date "2020.08.12"]
[Round "6.16"]
[White "Sedlak, Mikulas"]
[Black "Recky, Norbert"]
[Result "1/2-1/2"]
[ECO "B98"]
[WhiteElo "1573"]
[BlackElo "1811"]
[Annotator "NA"]
[PlyCount "66"]
[EventDate "2020.08.07"]
[EventType "swiss"]
[EventCountry "SVK"]
[SourceTitle "playchess.com"]
[Source "ChessBase"]
[SourceQuality "1"]
[TimeControl "40/5400+30:1800+30"]

1. e4 {[%emt 0:00:00]} c5 {[%emt 0:00:00]} 2. Nf3 {[%emt 0:00:00]} d6 {[%emt 0:00:00]} 3. d4 {[%emt 0:00:00]} cxd4 {[%emt 0:00:00]} 4. Nxd4 {[%emt 0:00:00]} Nf6 {[%emt 0:00:00]} 5. Nc3 {[%emt 0:00:11]} a6 {[%emt 0:00:06]} 6. Bg5 {[%emt 0:00:06]} e6 {[%emt 0:00:07]} 7. f4 {[%emt 0:00:10]} Be7 {[%emt 0:02:15]} 8. Qf3 {[%emt 0:00:14]} Qc7 {[%emt 0:06:58]} 9. O-O-O {[%emt 0:00:31]} Nc6 {[%emt 0:00:16]} 10. Nxc6 {[%emt 0:00:12]} bxc6 {[%emt 0:00:31]} 11. e5 {[%emt 0:01:11] B98: Sicilian Najdorf: 6 Bg5 e6 7 f4 Be7, sidelines.} dxe5 {[%emt 0:00:35]} 12. fxe5 {[%emt 0:00:35]} Nd5 $1 {[%emt 0:00:31]} 13. Bxe7 {[%emt 0:02:38]} Qxe7 {[%emt 0:00:24]} 14. Ne4 {[%emt 0:01:21]} O-O {[%emt 0:00:34]} 15. Bc4 {[%emt 0:02:39]} Bb7 {[%emt 0:03:45] [#]} 16. Bb3 $146 {[%emt 0:09:12]} ({Predecessor:} 16. Qg3 Kh8 17. Rhe1 Rab8 18. a3 a5 19. h4 Ba8 20. Ng5 Rb6 21. Qd3 g6 22. Rf1 {0-1 (64) Kreie,G (1968)-Rogulis,U (1764) Lieme 2005}) 16... a5 {[%emt 0:02:31]} 17. a4 {[%emt 0:04:42]} Rab8 {[%emt 0:03:48]} 18. c4 {[%emt 0:03:33]} Nb6 {[%emt 0:12:44]} 19. c5 {[%emt 0:10:20]} Nd7 {[%emt 0:03:21]} 20. Qc3 {[%emt 0:01:07]} Ba8 {[%emt 0:02:27]} 21. Bc2 {[%emt 0:06:01]} f6 {[%emt 0:11:09]} 22. exf6 {[%emt 0:02:52]} Nxf6 {[%emt 0:00:23]} 23. Nd6 {[%emt 0:03:04]} Nd5 {[%emt 0:03:08]} 24. Qe5 {[%emt 0:06:46]} Rf6 {[%emt 0:10:26]} 25. Ne4 {[%emt 0:03:58]} Rff8 {[%emt 0:01:42]} 26. Ng5 {[%emt 0:04:40]} g6 {[%emt 0:02:37]} 27. h4 {[%emt 0:08:08]} Qf6 {[%emt 0:04:05]} 28. Qxe6+ {[%emt 0:02:04]} Qxe6 {[%emt 0:00:21]} 29. Nxe6 {[%emt 0:00:05]} Rf2 {[%emt 0:00:48]} 30. Rd2 {[%emt 0:06:16]} Rxd2 $16 {[%emt 0:01:29]} 31. Kxd2 {[%emt 0:00:21]} Rxb2 {[%emt 0:00:22]} 32. Rb1 {[%emt 0:00:50]} Rxb1 {[%emt 0:02:48]} 33. Bxb1 {[%emt 0:00:36]} Kf7 {[%emt 0:00:47]} 1/2-1/2

[Event "Int SVK-ch Open 2020"]
[Site "Drienica"]
[Date "2020.08.13"]
[Round "6.17"]
[White "Mandak, Miroslav"]
[Black "Varga, Lukas"]
[Result "0-1"]
[ECO "A38"]
[WhiteElo "1927"]
[BlackElo "2040"]
[Annotator "ChessBase"]
[PlyCount "100"]
[EventDate "2020.08.07"]
[EventType "swiss"]
[EventCountry "SVK"]
[TimeControl "40/5400+30:1800+30"]

1. Nf3 {[%emt 0:00:00]} c5 {[%emt 0:00:00]} 2. c4 {[%emt 0:00:39]} Nf6 {[%emt 0:04:59]} 3. Nc3 {[%emt 0:01:00]} g6 {[%emt 0:02:39]} 4. g3 {[%emt 0:00:47]} Bg7 {[%emt 0:01:51]} 5. Bg2 {[%emt 0:00:27]} O-O {[%emt 0:00:58]} 6. d3 {[%emt 0:02:59]} Nc6 {[%emt 0:03:52]} 7. O-O {[%emt 0:02:02]} d6 {[%emt 0:00:23]} 8. Rb1 {[%emt 0:03:36]} Bd7 {[%emt 0:07:14]} 9. Bd2 {[%emt 0:02:24]} Nd4 {[%emt 0:04:33]} 10. e3 {[%emt 0:08:53]} Nxf3+ {[%emt 0:00:16]} 11. Bxf3 {[%emt 0:00:47]} Bc6 {[%emt 0:03:42]} 12. Bxc6 {[%emt 0:07:00]} bxc6 {[%emt 0:00:04]} 13. Ne2 {[%emt 0:00:43]} h5 {[%emt 0:05:14]} 14. h4 {[%emt 0:00:50]} Qd7 {[%emt 0:01:49]} 15. Kg2 {[%emt 0:01:00]} a5 {[%emt 0:02:41]} 16. Bc3 {[%emt 0:02:58]} a4 {[%emt 0:03:57]} 17. Qc2 {[%emt 0:04:13]} Qf5 {[%emt 0:03:55]} 18. e4 {[%emt 0:01:16]} Qd7 {[%emt 0:02:21]} 19. f3 {[%emt 0:07:58]} e5 {[%emt 0:02:00]} 20. Bd2 {[%emt 0:00:42]} Ra7 {[%emt 0:03:54]} 21. a3 {[%emt 0:00:48]} Nh7 {[%emt 0:02:55]} 22. Nc3 {[%emt 0:02:08]} Rfa8 {[%emt 0:00:43]} 23. Be3 {[%emt 0:03:55]} Nf8 {[%emt 0:00:32]} 24. Rbe1 {[%emt 0:02:23]} Ne6 {[%emt 0:02:08]} 25. Ne2 {[%emt 0:01:06]} Rb7 {[%emt 0:01:19]} 26. Kh2 {[%emt 0:03:46]} Rab8 {[%emt 0:02:11]} 27. Bc1 {[%emt 0:01:50]} Rb3 {[%emt 0:00:17]} 28. Nc3 {[%emt 0:06:01]} Bh6 {[%emt 0:04:24]} 29. Rf2 {[%emt 0:04:11]} Nd4 {[%emt 0:03:55]} 30. Qd1 {[%emt 0:00:27]} Bxc1 {[%emt 0:01:41]} 31. Qxc1 {[%emt 0:00:11]} Rxb2 {[%emt 0:03:44]} 32. Kg2 {[%emt 0:05:19]} R2b3 {[%emt 0:02:14]} 33. Rd1 {[%emt 0:06:54]} Kg7 {[%emt 0:02:09]} 34. Qa1 {[%emt 0:06:45]} Qd8 {[%emt 0:06:26]} 35. f4 {[%emt 0:04:08]} Qa5 {[%emt 0:04:02]} 36. Ne2 {[%emt 0:01:06]} Rb2 {[%emt 0:02:51]} 37. Nxd4 {[%emt 0:01:22]} Rxf2+ {[%emt 0:00:05]} 38. Kxf2 {[%emt 0:00:15]} cxd4 {[%emt 0:00:01]} 39. fxe5 {[%emt 0:02:36]} dxe5 {[%emt 0:01:21]} 40. Qa2 {[%emt 0:02:48]} Qc3 {[%emt 0:00:41]} 41. Rd2 {[%emt 0:30:34]} Qc1 {[%emt 0:30:50]} 42. Qc2 {[%emt 0:00:00]} Qh1 {[%emt 0:00:00]} 43. Qd1 {[%emt 0:00:00]} Qh3 {[%emt 0:00:00]} 44. Qf1 {[%emt 0:00:00]} Qh2+ {[%emt 0:00:00]} 45. Qg2 {[%emt 0:00:00]} Qxg2+ {[%emt 0:00:00]} 46. Kxg2 {[%emt 0:00:00]} Rb3 {[%emt 0:00:00]} 47. Kf3 {[%emt 0:00:00]} Rxa3 {[%emt 0:00:00]} 48. Ke2 {[%emt 0:00:00]} Rb3 {[%emt 0:00:00]} 49. Ra2 {[%emt 0:00:00]} a3 {[%emt 0:00:00]} 50. Kd2 {[%emt 0:00:00]} f5 {[%emt 0:00:00]} 0-1

[Event "Int SVK-ch Open 2020"]
[Site "Drienica"]
[Date "2020.08.12"]
[Round "6.17"]
[White "Marsina, Stefan"]
[Black "Kapolkova, Greta"]
[Result "0-1"]
[ECO "D02"]
[WhiteElo "1854"]
[BlackElo "1510"]
[Annotator "NA"]
[PlyCount "77"]
[EventDate "2020.08.07"]
[EventType "swiss"]
[EventCountry "SVK"]
[SourceTitle "playchess.com"]
[Source "ChessBase"]
[SourceQuality "1"]
[TimeControl "40/5400+30:1800+30"]

1. d4 {[%emt 0:01:06]} d5 {[%emt 0:00:00]} 2. Bf4 {[%emt 0:00:21]} Nf6 {[%emt 0:02:01]} 3. Nf3 {[%emt 0:00:08]} c5 {[%emt 0:04:30]} 4. c3 {[%emt 0:02:34]} Qb6 {[%emt 0:02:05]} 5. Qb3 {[%emt 0:01:27]} c4 {[%emt 0:02:46]} 6. Qc2 {[%emt 0:01:34] D02: 1 d4 d5 2 Nf3 sidelines, including 2...Nf6 3 g3 and 2...Nf6 3 Bf4.} Nc6 {[%emt 0:00:47]} 7. Nbd2 {[%emt 0:02:44]} Bg4 {[%emt 0:03:17]} 8. e4 {[%emt 0:21:11]} e6 {[%emt 0:01:14]} 9. Be2 {[%emt 0:16:53]} Be7 {[%emt 0:01:22]} 10. O-O {[%emt 0:00:49]} O-O {[%emt 0:00:38]} 11. Rfe1 {[%emt 0:02:06] [#]} Rfd8 $146 {[%emt 0:05:28]} ({Predecessor:} 11... Rfe8 12. Ne5 Bxe2 13. Rxe2 Nxe5 14. Bxe5 Qc6 15. Rae1 b5 16. exd5 Qxd5 17. Nf3 Nd7 {½-½ (63) Vestly,J (2119)-Rose,D (2165) Oslo 2006}) 12. Ne5 {[%emt 0:06:09]} Bxe2 {[%emt 0:14:16]} 13. Rxe2 {[%emt 0:00:02]} Nxe5 {[%emt 0:00:55]} 14. Bxe5 {[%emt 0:02:13]} Nd7 {[%emt 0:04:03]} (14... Qc6 $11) 15. exd5 {[%emt 0:02:37]} Nxe5 {[%emt 0:04:33]} 16. Rxe5 {[%emt 0:00:26]} Bf6 {[%emt 0:00:38]} 17. Rh5 {[%emt 0:13:17]} ({Much weaker is} 17. Nxc4 Qc7 $15) ({White should try} 17. dxe6 $16 Bxe5 18. exf7+ Kxf7 19. Nxc4 (19. dxe5 Qg6 $16) 19... Bxh2+ 20. Kxh2) 17... g6 {[%emt 0:01:00]} 18. Rh3 {[%emt 0:00:40]} exd5 {[%emt 0:00:35]} 19. Nf3 {[%emt 0:01:39]} Re8 {[%emt 0:01:10]} 20. Qd2 {[%emt 0:01:59]} Bg7 {[%emt 0:01:48]} 21. Rb1 {[%emt 0:02:24]} Qf6 {[%emt 0:03:26]} 22. Re1 {[%emt 0:05:27]} Rxe1+ {[%emt 0:00:30]} 23. Nxe1 {[%emt 0:01:22]} Re8 {[%emt 0:00:59]} 24. Rf3 {[%emt 0:03:10]} (24. Re3 $11 Rxe3 25. Qxe3) 24... Bh6 {[%emt 0:02:14]} 25. Rxf6 {[%emt 0:02:47]} Bxd2 {[%emt 0:00:13]} 26. Nf3 {[%emt 0:01:01]} Bc1 {[%emt 0:01:49]} 27. Rd6 {[%emt 0:03:30]} Bxb2 {[%emt 0:02:01]} 28. Rxd5 {[%emt 0:00:09]} Bxc3 {[%emt 0:00:18]} 29. Kf1 {[%emt 0:00:10]} a6 {[%emt 0:00:54]} 30. a4 {[%emt 0:00:19]} Rb8 {[%emt 0:03:25]} 31. Rc5 {[%emt 0:01:23]} b5 {[%emt 0:00:29]} 32. axb5 {[%emt 0:01:26]} axb5 {[%emt 0:00:11]} 33. d5 {[%emt 0:00:24]} Bf6 {[%emt 0:01:21]} 34. d6 {[%emt 0:01:49]} c3 {[%emt 0:01:37]} 35. Ne1 {[%emt 0:01:22]} b4 {[%emt 0:00:46]} 36. d7 {[%emt 0:00:21]} Rd8 {[%emt 0:00:29]} 37. Rc4 {[%emt 0:01:27]} b3 {[%emt 0:00:24]} 38. Rb4 $19 {[%emt 0:01:06]} b2 {[%emt 0:00:14]} 39. Rc4 {[%emt 0:00:49]} 0-1

[Event "Int SVK-ch Open 2020"]
[Site "Drienica"]
[Date "2020.08.12"]
[Round "6.18"]
[White "Kulich, Daniel"]
[Black "Soldan, Jan"]
[Result "1/2-1/2"]
[ECO "A45"]
[WhiteElo "1492"]
[BlackElo "1783"]
[Annotator "NA"]
[PlyCount "68"]
[EventDate "2020.08.07"]
[EventType "swiss"]
[EventCountry "SVK"]
[SourceTitle "playchess.com"]
[Source "ChessBase"]
[SourceQuality "1"]
[TimeControl "40/5400+30:1800+30"]

1. d4 {[%emt 0:00:00]} Nf6 {[%emt 0:00:00]} 2. Bf4 {[%emt 0:00:00]} g6 3. Nc3 a6 {[%emt 0:04:03]} 4. e4 {[%emt 0:01:20]} d6 {[%emt 0:01:02]} 5. Qd2 {[%emt 0:00:34]} Bg7 {[%emt 0:00:09]} 6. Bh6 {[%emt 0:00:25]} O-O {[%emt 0:00:31]} 7. Bxg7 {[%emt 0:00:22]} Kxg7 {[%emt 0:00:08]} 8. f3 {[%emt 0:00:55]} Nbd7 {[%emt 0:02:57]} 9. g4 {[%emt 0:00:13]} e5 {[%emt 0:01:00]} 10. d5 {[%emt 0:00:45]} b5 {[%emt 0:02:16]} 11. O-O-O {[%emt 0:02:56]} Nb6 {[%emt 0:02:21]} 12. h4 {[%emt 0:01:24]} h5 {[%emt 0:00:13]} 13. gxh5 {[%emt 0:04:51]} Nxh5 {[%emt 0:00:37]} 14. Qe1 {[%emt 0:00:47]} Bd7 {[%emt 0:02:25]} 15. Nce2 {[%emt 0:01:42]} Rh8 {[%emt 0:00:40]} 16. Bh3 {[%emt 0:00:48]} Nc4 {[%emt 0:01:19]} 17. Bxd7 {[%emt 0:00:58]} Qxd7 {[%emt 0:00:10]} 18. Ng3 {[%emt 0:00:34]} a5 {[%emt 0:01:16]} 19. N1e2 {[%emt 0:02:29]} b4 {[%emt 0:05:38]} 20. Nxh5+ {[%emt 0:00:58]} Rxh5 {[%emt 0:00:10]} 21. Ng3 {[%emt 0:00:12]} Rh7 {[%emt 0:02:54]} 22. h5 {[%emt 0:00:46]} Rah8 {[%emt 0:00:18]} 23. Qe2 {[%emt 0:00:10]} Nb6 {[%emt 0:01:10]} 24. Rdg1 {[%emt 0:01:03]} Kf8 {[%emt 0:01:21]} 25. hxg6 {[%emt 0:00:33]} fxg6 {[%emt 0:00:16]} 26. Qf1 {[%emt 0:06:16]} Qf7 {[%emt 0:05:54]} 27. Ne2 {[%emt 0:02:50]} Rxh1 {[%emt 0:11:05]} 28. Rxh1 {[%emt 0:00:13]} Rxh1 {[%emt 0:00:12]} 29. Qxh1 {[%emt 0:00:07]} Kg7 {[%emt 0:00:07]} 30. Qg2 {[%emt 0:01:27]} Qf8 {[%emt 0:07:26]} 31. Qh3 {[%emt 0:05:55]} a4 {[%emt 0:02:54]} 32. b3 {[%emt 0:01:40]} a3 {[%emt 0:06:03]} 33. Kd2 {[%emt 0:01:50]} Qf6 {[%emt 0:00:35]} 34. Qg4 {[%emt 0:00:52]} Qf7 {[%emt 0:11:27]} 1/2-1/2

[Event "Int SVK-ch Open 2020"]
[Site "Drienica"]
[Date "2020.08.13"]
[Round "6.19"]
[White "Belis, Rudolf"]
[Black "Sevcikova, Lucia"]
[Result "1-0"]
[ECO "D37"]
[WhiteElo "1924"]
[BlackElo "2017"]
[Annotator "ChessBase"]
[PlyCount "63"]
[EventDate "2020.08.07"]
[EventType "swiss"]
[EventCountry "SVK"]
[TimeControl "40/5400+30:1800+30"]

1. d4 {[%emt 0:00:48]} e6 {[%emt 0:00:00]} 2. c4 {[%emt 0:00:05]} d5 {[%emt 0:00:04]} 3. Nf3 {[%emt 0:00:12]} Nf6 {[%emt 0:00:38]} 4. Nc3 {[%emt 0:00:04]} Be7 {[%emt 0:01:11]} 5. Bf4 {[%emt 0:00:07]} c6 {[%emt 0:00:54]} 6. e3 {[%emt 0:00:09]} Nbd7 {[%emt 0:01:14]} 7. Qc2 {[%emt 0:00:09]} O-O {[%emt 0:01:28]} 8. g4 {[%emt 0:00:21]} dxc4 {[%emt 0:17:58]} 9. Bxc4 {[%emt 0:05:33]} Nd5 {[%emt 0:06:37]} 10. Bg3 {[%emt 0:01:14]} N7b6 {[%emt 0:00:30]} 11. Bd3 {[%emt 0:00:30]} g6 {[%emt 0:00:30]} 12. a3 {[%emt 0:00:30]} Nxc3 {[%emt 0:00:30]} 13. Qxc3 {[%emt 0:00:30]} Nd5 {[%emt 0:00:30]} 14. Qc2 {[%emt 0:00:30]} Qa5+ {[%emt 0:00:30]} 15. Ke2 {[%emt 0:00:30]} Bd7 {[%emt 0:00:30]} 16. Ne5 {[%emt 0:01:59]} Rad8 {[%emt 0:01:33]} 17. h4 {[%emt 0:02:15]} c5 {[%emt 0:10:19]} 18. dxc5 {[%emt 0:13:45]} Qxc5 {[%emt 0:00:30]} 19. Qxc5 {[%emt 0:00:30]} Bxc5 {[%emt 0:00:30]} 20. g5 {[%emt 0:00:01]} Ba4 {[%emt 0:01:58]} 21. h5 {[%emt 0:02:35]} Bd6 {[%emt 0:03:45]} 22. Rh4 {[%emt 0:00:12]} Bxe5 {[%emt 0:04:59]} 23. Bxe5 {[%emt 0:00:30]} Bc6 {[%emt 0:00:32]} 24. Rah1 {[%emt 0:02:01]} Rd7 {[%emt 0:01:52]} 25. R1h3 {[%emt 0:03:48]} a6 {[%emt 0:04:37]} 26. hxg6 {[%emt 0:01:14]} fxg6 {[%emt 0:00:25]} 27. Bxg6 {[%emt 0:00:14]} hxg6 {[%emt 0:00:55]} 28. Rh8+ {[%emt 0:00:02]} Kf7 {[%emt 0:00:15]} 29. Rf3+ {[%emt 0:00:04]} Ke7 {[%emt 0:00:44]} 30. Rhxf8 {[%emt 0:00:15]} Nc3+ {[%emt 0:01:05]} 31. bxc3 {[%emt 0:00:11]} Bxf3+ {[%emt 0:00:04]} 32. Rxf3 {[%emt 0:00:02]} 1-0